[Event "3rd VIZAG GM-Open 2022"]
[Site "Visakapatnam"]
[Date "2022.06.13"]
[Round "5.7"]
[White "Aaryan Varshney"]
[Black "Harsha Bharathakoti"]
[Result "0-1"]
[ECO "D02"]
[WhiteElo "2308"]
[BlackElo "2547"]
[Annotator "TA"]
[PlyCount "154"]
[EventDate "2022.06.13"]
[EventType "swiss"]
[EventCountry "IND"]
[SourceTitle "playchess.com"]
[Source "ChessBase"]
[SourceQuality "1"]
[TimeControl "5400+30"]

{[%evp 9,154,20,20,9,2,14,30,20,31,0,0,0,0,0,4,0,0,-2,9,0,0,0,0,-3,-20,-12,0,0,-14,-54,-52,-62,-47,-68,-60,-73,-67,-69,-46,-44,-36,-36,-21,-109,-120,-114,-113,-149,0,0,5,-63,0,-182,-175,-172,-183,-173,-179,-164,-167,-143,-125,-245,-180,-216,-192,-291,-289,-276,-156,-160,-103,-89,-48,-48,-48,-48,-48,-48,-48,-49,-49,-68,-68,-68,-68,-68,-68,-68,0,0,0,0,0,0,0,0,0,0,0,-51,-51,-57,-52,-52,-44,-122,-122,-136,-126,-149,-149,-150,-121,-289,-246,-470,-445,-12839,-12839,-12842,-12842,-12843,-12843,-12843,-12843,-12843,-12844,-12847,-12844,-12848,-12848,-12849,-12845,-12849,-12846,-12849,-12847,-12849,-12848,-12848,-12849,-12849,-12850,-27999,-27999]} 1. Nf3 {[%emt 0:00:03]} d5 {[%emt 0:03:11]} 2. g3 {[%emt 0:00:05]} Nc6 {[%emt 0:05:29]} 3. d4 {[%emt 0:03:35]} Bf5 {[%emt 0:00:21]} 4. Bg2 {[%emt 0:01:36]} Nb4 {[%emt 0:03:43]} 5. Na3 {[%emt 0:02:07]} e6 {[%emt 0:00:05]} 6. c3 {[%emt 0:03:54] D02: 1 d4 d5 2 Nf3 sidelines, including 2...Nf6 3 g3 and 2...Nf6 3 Bf4.} Nc6 {[%emt 0:00:05]} 7. Nc2 {[%emt 0:00:36]} h6 {[%emt 0:06:30]} 8. O-O {[%emt 0:02:05] White has an edge.} Nf6 {[%emt 0:00:20]} 9. Ne5 {[%emt 0:11:20]} Nxe5 {[%emt 0:14:36]} 10. dxe5 {[%emt 0:00:44]} Nd7 {[%emt 0:01:56] [#]} 11. c4 $146 {[%emt 0:03:48]} ({Predecessor:} 11. f4 Be7 12. Nd4 Bh7 13. f5 exf5 14. e6 Nf6 15. exf7+ Kxf7 16. Nxf5 Bc5+ 17. Kh1 {0-1 (31) Shandrygin,N (2209)-Seo,J (2478) Chess.com INT 2022}) 11... c6 {[%emt 0:05:25]} (11... Nxe5 12. cxd5 (12. Ne3 dxc4 13. Bxb7 Qxd1 $11) 12... exd5 13. Ne3 $14) 12. cxd5 {[%emt 0:03:14]} cxd5 {[%emt 0:01:11]} 13. Nd4 {[%emt 0:07:22]} Bh7 {[%emt 0:04:45]} 14. f4 {[%emt 0:08:56]} Bc5 {[%emt 0:49:53]} 15. Be3 {[%emt 0:06:19]} O-O {[%emt 0:00:00]} 16. Rc1 {[%emt 0:02:05]} Qb6 {[%emt 0:00:00]} 17. Qd2 {[%emt 0:03:40]} Rac8 {[%emt 0:00:00]} 18. a3 {[%emt 0:02:03]} Qa6 {[%emt 0:00:00]} 19. Rc3 {[%emt 0:04:22]} Nb6 {[%emt 0:00:00]} 20. Bf2 {[%emt 0:07:07]} Nc4 {[%emt 0:00:00]} 21. Qc1 {[%emt 0:02:01]} b5 {[%emt 0:00:00]} 22. b4 {[%emt 0:05:50]} Bb6 {[%emt 0:00:00]} 23. Nb3 {[%emt 0:00:23]} Bxf2+ {[%emt 0:00:00]} ({Reject} 23... Nxa3 24. Nc5 Bxc5 25. Bxc5 $11) 24. Rxf2 {[%emt 0:00:38]} Qb6 {[%emt 0:00:00] Hoping for ...d4.} 25. e3 {[%emt 0:00:36] Prevents d4.} Rc7 {[%emt 0:00:00]} 26. g4 {[%emt 0:08:04]} (26. Ra2 $1 $11) 26... Rfc8 $17 {[%emt 0:00:00][%cal Oc4e5] And now ...Nxe5! would win.} 27. Nc5 {[%emt 0:01:25]} a5 {[%emt 0:00:00]} 28. f5 {[%emt 0:01:34]} Rxc5 {[%emt 0:00:00]} (28... Nxe5 $17 29. fxe6 fxe6 30. Nxe6 Nf3+ 31. Rxf3 Rxc3 32. Qxc3 Qxe6) 29. bxc5 $11 {[%emt 0:00:26]} Rxc5 {[%emt 0:00:00]} 30. fxe6 {[%emt 0:03:25]} (30. Qd1 $1 $11) 30... fxe6 {[%emt 0:00:00]} ({Black should play} 30... Qxe6 $15 31. Qd1 b4 32. axb4 axb4) 31. Qf1 $2 {[%emt 0:00:59]} (31. Qd1 $1 $11) 31... Rc8 $1 $19 {[%emt 0:01:17]} ({Not} 31... Qb8 32. Rf7 $17) 32. Qe1 {[%emt 0:02:53]} b4 {[%emt 0:02:43]} 33. axb4 {[%emt 0:00:23]} axb4 {[%emt 0:00:04]} 34. Rb3 {[%emt 0:00:30]} Rb8 {[%emt 0:00:02]} 35. Ra2 {[%emt 0:01:57]} Nxe5 {[%emt 0:01:49] Black is more active.} 36. Qd2 {[%emt 0:00:31]} (36. Qg3 $17 {keeps fighting.} Qd6 37. Qf4) 36... Nc6 {[%emt 0:02:42]} ({Inferior is} 36... Nxg4 37. Qd4 Qxd4 38. exd4 $11) 37. h3 {[%emt 0:01:50]} Qc5 $1 {[%emt 0:02:07]} 38. Ra6 {[%emt 0:00:31]} (38. Rab2 $142) 38... Qc4 {[%emt 0:00:44]} 39. Rxc6 {[%emt 0:00:31]} Qxc6 {[%emt 0:00:28]} (39... Qxb3 $19 40. Qd4 Kh8) 40. Rxb4 $17 {[%emt 0:00:09]} Ra8 {[%emt 0:00:26]} (40... Rf8 $142 41. Rf4 Rc8) 41. Qb2 {[%emt 0:00:31]} Qc5 {[%emt 0:00:37]} 42. Rb8+ {[%emt 0:00:37]} Rxb8 {[%emt 0:00:03]} 43. Qxb8+ $15 {[%emt 0:00:06][%mdl 4096] Endgame KQB-KQB} Qf8 {[%emt 0:00:48]} 44. Qe5 {[%emt 0:00:57]} Qf6 {[%emt 0:00:28]} 45. Qb8+ {[%emt 0:00:13]} Kf7 $1 {[%emt 0:00:03]} 46. Qc7+ {[%emt 0:00:25]} Qe7 {[%emt 0:00:02]} 47. Qf4+ {[%emt 0:00:16]} Ke8 $1 {[%emt 0:00:03]} 48. Qb8+ {[%emt 0:00:29]} Qd8 $1 {[%emt 0:00:49]} 49. Qe5 {[%emt 0:00:52][%csl LRe6,LRg7]} Qd7 {[%emt 0:00:08]} (49... Kf7 $1 $15) 50. Qb8+ $11 {[%emt 0:00:33]} Kf7 {[%emt 0:00:15]} 51. Qf4+ {[%emt 0:00:15]} Ke7 {[%emt 0:00:31]} 52. Qe5 {[%emt 0:00:35]} Kf8 {[%emt 0:00:07]} 53. Qf4+ $1 {[%emt 0:00:41]} Qf7 {[%emt 0:00:04]} 54. Qd6+ {[%emt 0:00:45]} Qe7 {[%emt 0:00:49]} 55. Qb8+ {[%emt 0:00:35]} (55. Qf4+ $1 $11 Kg8 56. Qb8+ Qf8 57. Qe5) 55... Qe8 $1 $15 {[%emt 0:00:10]} 56. Qe5 {[%emt 0:00:31]} Bg6 {[%emt 0:00:44]} 57. h4 {[%emt 0:00:29]} Kg8 {[%emt 0:00:22]} 58. g5 {[%emt 0:00:18]} (58. e4 $15) 58... hxg5 $17 {[%emt 0:02:52]} 59. hxg5 {[%emt 0:00:40]} Qf7 $1 {[%emt 0:00:04]} 60. Qb8+ {[%emt 0:00:31]} Kh7 {[%emt 0:00:14] White must now prevent ...Be4.} 61. Qh2+ {[%emt 0:00:30] [#]} Bh5 $1 {[%emt 0:01:21] Strongly threatening ...Kg6.} 62. Qe5 $2 {[%emt 0:00:22] [#] This move loses the game for White.} (62. Qg3 $17) 62... Bg4 $1 $19 {[%emt 0:00:22] ...Qf5 is the strong threat.} 63. Qg3 $2 {[%emt 0:00:40]} (63. Qf4 Qxf4 64. exf4) 63... Qf5 {[%emt 0:00:09]} 64. e4 {[%emt 0:00:29]} (64. Bf1 $142 Kg6 65. Bg2) 64... dxe4 {[%emt 0:00:25]} 65. Qf2 {[%emt 0:00:29]} Kg6 {[%emt 0:00:08]} 66. Qe3 {[%emt 0:00:31]} Bf3 {[%emt 0:00:03]} 67. Bf1 {[%emt 0:00:28]} Qxg5+ {[%emt 0:00:41]} 68. Qxg5+ {[%emt 0:00:11]} Kxg5 {[%emt 0:00:01] KB-KB} 69. Bh3 {[%emt 0:00:07]} e5 {[%emt 0:00:04]} 70. Bf1 {[%emt 0:00:03]} e3 {[%emt 0:00:04]} 71. Bc4 {[%emt 0:00:03]} Kf4 {[%emt 0:03:37]} 72. Bb5 {[%emt 0:00:05]} g5 {[%emt 0:00:00][%cal Bg7g5,Bg5g4,Bg4g3,Bg3g2][%mdl 32]} 73. Bc4 {[%emt 0:00:05]} g4 {[%emt 0:00:00]} 74. Bb5 {[%emt 0:00:04]} g3 {[%emt 0:00:00]} 75. Kf1 {[%emt 0:00:08]} g2+ {[%emt 0:00:00]} 76. Kg1 {[%emt 0:00:06]} e2 {[%emt 0:00:00]} 77. Bxe2 {[%emt 0:00:04]} Bxe2 {[%emt 0:00:00] Weighted Error Value: White=0.19 (very precise) /Black=0.11 (very precise)} 0-1

[Event "3rd VIZAG GM-Open 2022"]
[Site "Visakapatnam"]
[Date "2022.06.13"]
[Round "5.8"]
[White "Savchenko, Boris"]
[Black "Aradhya, Garg"]
[Result "1/2-1/2"]
[ECO "C30"]
[WhiteElo "2524"]
[BlackElo "2275"]
[Annotator "TA"]
[PlyCount "97"]
[EventDate "2022.06.13"]
[EventType "swiss"]
[EventCountry "IND"]
[SourceTitle "playchess.com"]
[Source "ChessBase"]
[SourceQuality "1"]
[TimeControl "5400+30"]

{[%evp 9,97,-35,28,-35,-30,-17,-45,-50,-50,-59,-46,-43,-50,-54,-51,-45,-45,-39,-38,-52,-39,-37,-41,-43,-43,-43,-42,-37,-24,-25,-19,-10,0,0,0,-24,-24,-23,182,139,141,141,143,159,175,175,268,239,270,260,253,262,232,217,222,216,211,114,137,85,130,125,105,8,8,8,8,8,8,8,8,8,8,8,8,0,8,8,8,0,8,8,8,8,7,0,8,8,8,8]} 1. e4 {[%emt 0:00:08]} e5 {[%emt 0:00:02]} 2. f4 {[%emt 0:00:19]} Bc5 {[%emt 0:00:08]} 3. Nf3 {[%emt 0:00:07]} d6 {[%emt 0:00:04]} 4. c3 {[%emt 0:00:04]} Nf6 {[%emt 0:07:48]} 5. d4 {[%emt 0:00:08]} Bb6 {[%emt 0:02:23] [#]} ({Black should play} 5... exd4 $15 6. cxd4 Bb6) 6. Bb5+ $146 {[%emt 0:26:34] C30: King's Gambit Declined.} ({Reject} 6. dxe5 Ng4 7. Qc2 dxe5 $15) (6. a4 $11 Nc6 7. Bb5 (7. d5 Nxe4 8. a5 Bf2+ 9. Ke2 Bc5 $11)) ({Predecessor:} 6. fxe5 dxe5 7. Nxe5 O-O 8. Be3 Nxe4 9. Qf3 Nd6 10. Nd2 Be6 11. Bd3 Nd7 12. O-O-O Nxe5 13. dxe5 Bxe3 14. Qxe3 Nf5 {½-½ (31) Shabalov,A (2521)-Fishbein,A (2417) Saint Louis 2021}) 6... Bd7 $15 {[%emt 0:14:26]} 7. fxe5 {[%emt 0:00:13]} dxe5 {[%emt 0:00:57]} (7... Bxb5 $2 8. exf6 Ba6 9. fxg7 $18) 8. Nxe5 {[%emt 0:04:03] Black is slightly better.} Bxb5 {[%emt 0:00:26]} 9. Qb3 {[%emt 0:00:07][%csl Ge5,LRb5,LRf7][%cal Rb3f7] [#]} O-O {[%emt 0:01:09]} 10. Qxb5 {[%emt 0:00:05]} Nxe4 {[%emt 0:00:48] Hoping for ...Qh4+.} 11. Qd3 $1 {[%emt 0:00:11]} Qd5 {[%emt 0:05:24] Strongly threatening ...Re8.} 12. Qc4 {[%emt 0:06:50]} ({Not} 12. Nd2 $2 Nxd2 13. Qxd2 Re8 $19) 12... Nf6 {[%emt 0:16:42]} 13. Qxd5 {[%emt 0:24:57]} Nxd5 {[%emt 0:00:06]} 14. Nc4 {[%emt 0:00:07]} c5 {[%emt 0:01:53]} (14... Re8+ {looks sharper.} 15. Kf2 Nd7 16. Re1 Rxe1 17. Kxe1 c6) 15. Nxb6 {[%emt 0:00:07]} axb6 {[%emt 0:00:01]} 16. dxc5 {[%emt 0:00:08]} bxc5 {[%emt 0:12:18]} 17. O-O {[%emt 0:01:02]} Nc6 {[%emt 0:00:10]} 18. Na3 {[%emt 0:00:11]} Rfe8 {[%emt 0:00:46]} 19. Rd1 {[%emt 0:01:58]} Rad8 {[%emt 0:05:28][%cal Od5c3]} 20. Nb5 {[%emt 0:00:18]} Ne5 {[%emt 0:01:30]} 21. b3 {[%emt 0:01:08]} f6 {[%emt 0:04:05]} 22. a4 {[%emt 0:03:48]} c4 {[%emt 0:05:14]} 23. b4 {[%emt 0:02:16]} Nxb4 $2 {[%emt 0:03:45]} 24. Rxd8 $18 {[%emt 0:00:08]} Rxd8 {[%emt 0:00:03]} 25. cxb4 {[%emt 0:00:06]} Rd1+ {[%emt 0:00:02]} 26. Kf2 {[%emt 0:00:06] Threatens to win with Ke2.} Nd3+ {[%emt 0:00:05]} 27. Ke2 {[%emt 0:00:04]} Rxc1 {[%emt 0:00:24]} (27... Rg1 $142) 28. Rxc1 {[%emt 0:00:05]} Nxc1+ {[%emt 0:00:02][%mdl 4096] Endgame KN-KN} 29. Kd2 {[%emt 0:00:06]} Na2 {[%emt 0:00:26]} 30. Nd6 {[%emt 0:00:07][%csl LRb7,LRc4]} Nxb4 {[%emt 0:10:31]} 31. Kc3 {[%emt 0:00:08]} Nc6 {[%emt 0:00:54]} 32. Kxc4 {[%emt 0:01:40]} Kf8 {[%emt 0:01:42]} 33. Kc5 {[%emt 0:00:54]} (33. Nxb7 $18 {And now Kb5 would win.} Ke7 34. Kd5 Nb4+ 35. Kc5) 33... Ke7 $16 {[%emt 0:00:25]} 34. Nf5+ {[%emt 0:02:48]} ({Better is} 34. Nxb7 Kd7 35. Kb6) 34... Kd7 {[%emt 0:00:08]} 35. Nxg7 {[%emt 0:00:09] Black must now prevent Nh5.} Ne5 {[%emt 0:00:18]} 36. h4 {[%emt 0:04:59]} ({White should try} 36. a5 $16) 36... Nd3+ $11 {[%emt 0:01:12] The position is equal.} 37. Kb6 {[%emt 0:00:22] [#] a5 is the strong threat.} Nb2 {[%emt 0:00:07]} 38. Kb5 {[%emt 0:00:10]} Kd6 {[%emt 0:00:26]} 39. a5 {[%emt 0:00:52]} Ke5 {[%emt 0:01:46] Against Nf5} 40. g3 {[%emt 0:00:41]} f5 {[%emt 0:01:03]} 41. Ne8 {[%emt 0:01:34]} Ke6 {[%emt 0:01:09]} 42. Ng7+ {[%emt 0:00:06]} Ke5 {[%emt 0:00:05]} 43. Nh5 {[%emt 0:00:04]} Ke4 {[%emt 0:00:32]} 44. Kb4 {[%emt 0:02:32]} Kf3 {[%emt 0:01:21]} 45. Ng7 {[%emt 0:00:36]} Nd3+ {[%emt 0:01:28]} 46. Kb5 {[%emt 0:00:28]} Ne5 {[%emt 0:00:28]} (46... Kxg3 $2 47. Nxf5+ Kf3 48. Nd6 $18) 47. Nxf5 {[%emt 0:01:07]} h5 {[%emt 0:00:57]} 48. Kc5 {[%emt 0:09:20]} Nc6 {[%emt 0:01:57]} 49. a6 {[%emt 0:02:03] Black defended with fortune.  Weighted Error Value: White=0.12 (very precise) /Black=0.15 (very precise)} 1/2-1/2

[Event "3rd VIZAG GM-Open 2022"]
[Site "Visakapatnam"]
[Date "2022.06.13"]
[Round "5.9"]
[White "Mitrabha, Guha"]
[Black "Saravana, Krishnan P."]
[Result "1-0"]
[ECO "A21"]
[WhiteElo "2500"]
[BlackElo "2269"]
[Annotator "TA"]
[PlyCount "79"]
[EventDate "2022.06.13"]
[EventType "swiss"]
[EventCountry "IND"]
[SourceTitle "playchess.com"]
[Source "ChessBase"]
[SourceQuality "1"]
[TimeControl "5400+30"]

{[%evp 9,79,7,10,4,12,15,5,8,19,12,45,10,27,21,16,15,77,-25,-14,-4,-19,-19,-11,-22,-20,-24,-16,-26,0,-3,-34,-34,0,0,20,27,31,14,26,23,119,119,169,141,203,195,233,220,223,183,424,420,433,474,467,450,468,457,462,462,499,500,473,433,454,449,447,452,429,393,519,434]} 1. c4 {[%emt 0:06:32]} e5 {[%emt 0:03:01]} 2. Nc3 {[%emt 0:00:09]} Bb4 {[%emt 0:02:07]} 3. Nd5 {[%emt 0:00:08]} Be7 {[%emt 0:01:54]} 4. d4 {[%emt 0:01:41]} d6 {[%emt 0:00:12]} 5. e4 {[%emt 0:06:42]} Nf6 {[%emt 0:01:18]} 6. Nxe7 {[%emt 0:01:34] A21: English Opening: 1...e5 2 Nc3.} Qxe7 {[%emt 0:00:06]} 7. f3 $1 {[%emt 0:00:25]} exd4 {[%emt 0:03:22]} 8. Qxd4 {[%emt 0:00:41] The position is equal.} Nc6 {[%emt 0:00:06]} 9. Qc3 {[%emt 0:00:20]} Nh5 {[%emt 0:07:27]} 10. Ne2 {[%emt 0:01:15]} (10. g4 $5 {[%cal Rg4h5]} Nf6 11. Ne2 $14) 10... O-O {[%emt 0:01:57]} 11. Bd2 {[%emt 0:14:09]} a5 {[%emt 0:02:10]} 12. g4 {[%emt 0:07:23]} Nf6 {[%emt 0:09:08]} (12... Qh4+ $11 13. Kd1 Nf6) 13. Ng3 {[%emt 0:01:29] [#]} (13. Rg1 $16) 13... d5 $146 {[%emt 0:03:01][%cal Rd5e4]} ({Predecessor:} 13... Re8 14. h3 Qe5 15. Kf2 Nd7 16. b3 Nc5 17. Rd1 Nb4 18. a3 Nc6 19. Rb1 Bd7 {½-½ (70) Brustkern,J (2241)-Semcesen,D (2490) Vasteras 2013}) 14. g5 {[%emt 0:11:06]} d4 {[%emt 0:01:09]} 15. Qc1 {[%emt 0:01:03]} Nd7 {[%emt 0:05:33] [#] Strongly threatening ...Nc5.} 16. Bg2 $1 {[%emt 0:00:47]} f5 {[%emt 0:06:25][%cal Of5f4] Threatens to win with ...f4!} 17. gxf6 {[%emt 0:00:32]} Qxf6 {[%emt 0:09:54]} 18. O-O {[%emt 0:00:16]} Nc5 {[%emt 0:02:10]} 19. f4 $1 {[%emt 0:04:04]} Qh4 {[%emt 0:02:06]} 20. f5 {[%emt 0:01:36] Hoping for Bg5.} Nd3 {[%emt 0:06:51]} 21. Bg5 {[%emt 0:04:11]} Nxc1 {[%emt 0:00:40] Pair of Knights!} (21... Qg4 $5 {[%cal Rd3c1]} 22. Bf3 Nxc1 23. Bxg4 Nd3 $11) 22. Bxh4 {[%emt 0:00:02]} Nd3 {[%emt 0:00:08]} 23. b3 $1 {[%emt 0:00:23]} Bd7 {[%emt 0:09:00]} 24. Rad1 {[%emt 0:02:03]} Nde5 {[%emt 0:01:00] [#] Black is now going downhill.} (24... Nce5 $11) 25. Ne2 $1 $16 {[%emt 0:02:34][%cal Bg3e2,Be2f4,Bf4d3][%mdl 32]} d3 {[%emt 0:04:52]} (25... a4 $16 26. Nxd4 Nxd4) 26. Nf4 {[%emt 0:01:16]} Nb4 {[%emt 0:01:12]} (26... Rfe8 $16 27. Nxd3 Nxd3) 27. a3 $18 {[%emt 0:00:22]} Nc2 {[%emt 0:00:24]} 28. Nxd3 {[%emt 0:00:30]} Ng4 {[%emt 0:00:44]} 29. Nf2 {[%emt 0:00:15]} Nge3 {[%emt 0:06:06]} (29... Bxf5 {is a better defense.} 30. exf5 Nge3) 30. Rxd7 {[%emt 0:00:25]} Nxf1 {[%emt 0:00:05]} 31. Bxf1 {[%emt 0:00:05]} a4 {[%emt 0:00:17]} 32. bxa4 {[%emt 0:00:11]} Rf7 {[%emt 0:01:21]} 33. Rd3 {[%emt 0:03:00]} c5 {[%emt 0:01:40]} 34. Rd5 {[%emt 0:01:19]} Rxa4 {[%emt 0:01:17]} 35. Ng4 {[%emt 0:02:19] Against Ne3} b6 {[%emt 0:01:21]} 36. f6 {[%emt 0:01:38] e5 is the strong threat.} Rxa3 {[%emt 0:00:25]} 37. Ne5 {[%emt 0:00:27] Intending Rd8+ and mate.} Rxf6 {[%emt 0:00:13]} 38. Bxf6 {[%emt 0:00:05]} gxf6 {[%emt 0:00:04]} 39. Ng4 {[%emt 0:00:32]} Ra1 {[%emt 0:00:39]} 40. Nxf6+ {[%emt 0:01:43] Weighted Error Value: White=0.11 (very precise) /Black=0.30} 1-0

[Event "3rd VIZAG GM-Open 2022"]
[Site "Visakapatnam"]
[Date "2022.06.13"]
[Round "5.10"]
[White "Nigmatov, Ortik"]
[Black "Krishnan Ritvik"]
[Result "1/2-1/2"]
[ECO "B29"]
[WhiteElo "2463"]
[BlackElo "2023"]
[Annotator "TA"]
[PlyCount "97"]
[EventDate "2022.06.13"]
[EventType "swiss"]
[EventCountry "IND"]
[SourceTitle "playchess.com"]
[Source "ChessBase"]
[SourceQuality "1"]
[TimeControl "5400+30"]

{[%evp 10,97,0,-7,10,-19,-27,-32,-8,-1,-1,-70,-62,-75,-72,-69,-12,-60,-45,-45,-12,-102,-110,-107,-86,-76,-85,-66,-85,-62,-20,-19,-21,-18,0,-5,0,0,0,-8,0,-21,6,-75,-72,-59,12,-114,-101,-129,0,0,0,0,0,0,0,0,0,0,0,0,0,0,0,0,0,0,0,0,0,0,0,0,0,0,0,0,0,0,0,0,0,0,0,0,0,0,0,0]} 1. Nf3 {[%emt 0:00:14]} c5 {[%emt 0:00:01]} 2. e4 {[%emt 0:00:33][%cal Be2e4,Be4e5][%mdl 32]} Nf6 {[%emt 0:00:02]} 3. e5 {[%emt 0:02:46]} Nd5 {[%emt 0:00:01]} 4. c4 {[%emt 0:00:33]} Nc7 {[%emt 0:03:55]} 5. d4 {[%emt 0:00:23]} cxd4 {[%emt 0:00:59]} 6. Qxd4 {[%emt 0:00:10]} Nc6 {[%emt 0:02:55] B29: Sicilian: 2 Nf3 Nf6 (Nimzowitsch Variation).} 7. Qe4 {[%emt 0:00:19]} g6 {[%emt 0:08:19]} 8. Be2 {[%emt 0:10:49]} d5 {[%emt 0:16:13] Black is slightly better.} 9. exd6 {[%emt 0:01:52]} Qxd6 {[%emt 0:00:02] [#]} 10. Bf4 $146 {[%emt 0:00:54]} ({White should play} 10. O-O $11) ({Predecessor:} 10. O-O Bf5 11. Qh4 Bg7 12. Nc3 Nd4 13. Nxd4 Qxd4 14. Qxd4 Bxd4 15. Be3 O-O-O 16. Bxd4 Rxd4 {1-0 (83) Priasmoro,N (2474)-Le,T (2517) Kuala Lumpur 2019}) 10... Qb4+ $1 $15 {[%emt 0:02:27]} 11. Bd2 $1 {[%emt 0:30:43]} Qxb2 {[%emt 0:00:42]} 12. Bc3 {[%emt 0:00:11]} Qc1+ {[%emt 0:00:16]} 13. Bd1 {[%emt 0:00:05]} Bf5 {[%emt 0:09:37]} 14. Qe2 {[%emt 0:00:07]} Rg8 {[%emt 0:05:10] Threatens to win with ...0-0-0.} (14... Bxb1 $2 15. Bxh8 O-O-O 16. O-O $18 (16. Bb2 Rxd1+ 17. Qxd1 Qxd1+ 18. Kxd1 Bd3 $18)) (14... O-O-O $5 15. Bxh8 f6 $15) 15. Bb2 {[%emt 0:12:18]} (15. O-O $1 $11) 15... Qf4 $17 {[%emt 0:01:15] Strongly threatening ...0-0-0.} 16. O-O {[%emt 0:03:27]} O-O-O {[%emt 0:03:24] aiming for ...Bd3.} 17. Ne5 {[%emt 0:03:12] Inhibits Bd3.} Nd4 {[%emt 0:06:14]} 18. Qe3 {[%emt 0:02:07]} Qxe3 {[%emt 0:02:58]} 19. fxe3 {[%emt 0:00:05]} Nc2 {[%emt 0:00:21]} (19... Nc6 $5 {[%cal Rf8g7]} 20. Nxf7 Rd3 $17) 20. Bxc2 {[%emt 0:00:06]} Bxc2 {[%emt 0:00:03]} 21. Nxf7 {[%emt 0:00:20]} ({Reject} 21. Na3 Be4 22. Nxf7 Rd2 $17) 21... Rd1 {[%emt 0:01:06]} 22. Na3 {[%emt 0:06:40]} Rxa1 {[%emt 0:03:11]} 23. Bxa1 {[%emt 0:00:02]} Bf5 {[%emt 0:00:57][%cal Bc2f5,Bf5e6,Be6c4][%mdl 32]} 24. Be5 {[%emt 0:03:19]} Be6 {[%emt 0:06:00]} 25. Nb5 {[%emt 0:08:08]} Bxc4 {[%emt 0:02:46]} 26. Nxc7 {[%emt 0:05:09]} (26. Nxa7+ $11 Kb8 27. Rf4) 26... Bxf1 {[%emt 0:00:02]} 27. Kxf1 {[%emt 0:00:06]} h6 {[%emt 0:01:33]} (27... Kd7 $15) 28. Ke2 {[%emt 0:01:21] [#]} (28. Nb5 $11 {remains equal.}) 28... Kd7 $1 {[%emt 0:02:46]} 29. h4 {[%emt 0:02:09] [#]} Bg7 {[%emt 0:04:29]} (29... a6 $1 $17 {...Bg7 is the strong threat.} 30. Kd3 Bg7 31. Bxg7 Rxg7) 30. Nb5 $1 $11 {[%emt 0:00:13] The position is equal.} Ke6 {[%emt 0:01:20]} 31. Bxg7 {[%emt 0:00:35]} Rxg7 {[%emt 0:00:01]} 32. Nxh6 {[%emt 0:01:35] And now g4 would win.} Rh7 {[%emt 0:00:00]} 33. Nd4+ {[%emt 0:00:09]} Kd5 {[%emt 0:00:49]} 34. Ng4 {[%emt 0:01:12]} ({Much weaker is} 34. Ng8 Kd6 35. g3 Rh8 36. Nb5+ Kd7 37. Nxe7 Kxe7 $19) 34... Rxh4 {[%emt 0:00:03]} 35. Ne5 {[%emt 0:00:19]} Rh1 {[%emt 0:00:53]} 36. Nxg6 {[%emt 0:00:31] Pair of Knights!} Ra1 {[%emt 0:01:02]} 37. Nxe7+ {[%emt 0:00:09]} Ke4 {[%emt 0:00:14]} 38. Nb3 {[%emt 0:00:14]} Rxa2+ {[%emt 0:00:11]} 39. Nd2+ {[%emt 0:00:05]} Ke5 {[%emt 0:00:05]} 40. Ng6+ {[%emt 0:00:34]} Kf5 {[%emt 0:00:49]} 41. Nf4 {[%emt 0:00:28]} a5 {[%emt 0:00:40]} 42. Nd5 {[%emt 0:02:34]} b5 {[%emt 0:01:10]} 43. Kd3 {[%emt 0:01:38]} b4 {[%emt 0:01:48]} 44. e4+ {[%emt 0:00:18]} Ke6 {[%emt 0:00:35]} 45. g4 {[%emt 0:00:18]} Ra3+ {[%emt 0:01:03]} 46. Kd4 {[%emt 0:04:30]} Rg3 {[%emt 0:00:49]} 47. Nf4+ {[%emt 0:00:00]} Ke7 {[%emt 0:00:27]} 48. Nd5+ {[%emt 0:00:00]} Ke6 {[%emt 0:01:52]} 49. Nf4+ {[%emt 0:00:00] Weighted Error Value: White=0.17 (very precise) /Black=0.11 (very precise)} 1/2-1/2